bitfinex/quotes_BTCUSD_20251202
["timestamp","ask_amount","ask_price","bid_price","bid_amount"]
[1764696985505,0.00910452,91880.0,91879.0,0.69552289]
[1764696985709,0.00010452,91880.0,91879.0,0.38896289]
[1764696985913,0.00010452,91880.0,91879.0,0.71196289]
[1764696986102,0.00710452,91880.0,91879.0,0.41090464]
[1764696986296,0.00710452,91880.0,91879.0,0.38896289]
[1764696986609,0.00910452,91880.0,91879.0,0.73390464]
[1764696986851,0.00210452,91880.0,91879.0,0.71196289]
[1764696987054,0.00910452,91880.0,91879.0,0.71296289]
[1764696987227,0.00910452,91880.0,91879.0,0.73490464]
[1764696987437,0.01110452,91880.0,91879.0,0.73490464]
[1764696987605,0.01110452,91880.0,91879.0,0.71296289]
[1764696987808,0.01110452,91880.0,91879.0,0.73490464]
[1764696988360,0.01110452,91880.0,91879.0,0.71746464]
[1764696988554,0.01110452,91880.0,91879.0,0.71296289]
[1764696988942,0.01110452,91880.0,91879.0,0.73490464]
[1764696989145,0.01110452,91880.0,91879.0,0.3859953]
[1764696989345,0.22877974,91880.0,91879.0,0.34144]
[1764696989522,0.22877974,91880.0,91879.0,0.001]
[1764696989725,0.01110452,91880.0,91879.0,0.01844]
[1764696989957,0.01110452,91880.0,91879.0,0.08355]
[1764696990155,0.22877974,91880.0,91879.0,0.08355]
[1764696990358,0.22677974,91880.0,91879.0,0.08355]
[1764696990564,0.22677974,91880.0,91879.0,0.39307759]
[1764696990565,0.00910452,91880.0,91879.0,0.39307759]
[1764696990764,0.00910452,91880.0,91879.0,0.73801934]
[1764696990919,0.00910452,91880.0,91879.0,0.71707759]
[1764696991325,0.00010452,91880.0,91879.0,0.73801934]
[1764696991542,0.00010452,91880.0,91879.0,0.71607759]
[1764696991805,0.00010452,91880.0,91879.0,0.71907759]
[1764696992023,0.00010452,91880.0,91879.0,0.74101934]
[1764696992253,0.00010452,91880.0,91879.0,0.71907759]
[1764696992466,0.00010452,91880.0,91879.0,0.74101934]
[1764696992667,0.00010452,91880.0,91879.0,0.71907759]
[1764696993913,0.00010452,91880.0,91879.0,0.74101934]
[1764696994351,0.00010452,91880.0,91879.0,0.71907759]
[1764696995619,0.00010452,91880.0,91879.0,1.13357759]
[1764696995855,0.00010452,91880.0,91879.0,1.15551934]
[1764696996290,0.01087843,91925.0,91918.0,0.01087926]
[1764696996505,0.22845956,91920.0,91919.0,0.01744]
[1764696997811,0.22845956,91920.0,91918.0,0.00011552]
[1764696998013,0.07739,91919.0,91918.0,0.00011552]
[1764696998426,0.09929103,91919.0,91918.0,0.00011552]
[1764696998639,0.07739,91919.0,91918.0,0.00011552]
[1764696998865,0.16181402,91919.0,91918.0,0.00011552]
[1764696999517,0.05829381,91919.0,91918.0,0.00111552]
[1764696999725,0.08019484,91919.0,91918.0,0.00111552]
[1764696999975,0.16290678,91919.0,91918.0,0.00211552]
[1764697000205,0.08019484,91919.0,91918.0,0.00211552]
[1764697000415,0.08019484,91919.0,91918.0,0.00111552]
[1764697000615,0.08019484,91919.0,91918.0,0.00011552]
[1764697001278,0.22856201,91879.0,91873.0,0.323]
[1764697001495,0.21768091,91878.0,91877.0,0.01744]
[1764697002272,0.21767833,91879.0,91877.0,0.01744]
[1764697002464,0.22567833,91879.0,91877.0,0.01744]
[1764697002671,0.21768233,91877.0,91876.0,0.04678552]
[1764697002868,0.008,91879.0,91876.0,0.06422552]
[1764697003047,0.01788387,91879.0,91876.0,0.06422552]
[1764697003275,0.21768043,91878.0,91876.0,0.06422552]
[1764697003475,0.21968043,91878.0,91877.0,0.01744]
[1764697003679,0.21968043,91878.0,91876.0,0.01855552]
[1764697003935,0.01788387,91879.0,91876.0,0.06422552]
[1764697004237,0.01088387,91879.0,91876.0,0.06322552]
[1764697004531,0.01088387,91879.0,91877.0,0.001]
[1764697004532,0.009,91878.0,91877.0,0.001]
[1764697004702,0.0108834,91883.0,91876.0,0.04578552]
[1764697004902,0.0163244,91877.0,91876.0,0.00111552]
[1764697005111,0.009,91879.0,91877.0,0.21768187]
[1764697005311,0.22856326,91879.0,91876.0,0.00011552]
[1764697005510,0.01088364,91881.0,91877.0,0.01088411]
[1764697005711,0.009,91878.0,91877.0,0.22956544]
[1764697005890,0.002,91879.0,91876.0,0.01099975]
[1764697006097,0.002,91879.0,91876.0,0.22868288]
[1764697006300,0.01088387,91879.0,91876.0,0.01099975]
[1764697006504,0.22854951,91884.0,91879.0,0.01088387]
[1764697006700,0.22854951,91884.0,91880.0,0.21767413]
[1764697006925,0.21766892,91883.0,91880.0,0.21767413]
[1764697007126,0.21767331,91881.0,91879.0,0.01088387]
[1764697007334,0.22855439,91882.0,91879.0,0.01088387]
[1764697007690,0.22855439,91882.0,91880.0,0.003]
[1764697008096,0.24485754,91891.0,91886.0,0.21765969]
[1764697008334,0.01088257,91890.0,91886.0,0.01088305]
[1764697008543,0.01088257,91890.0,91885.0,0.21766338]
[1764697008544,0.01088269,91889.0,91885.0,0.04567]
[1764697008703,0.21766101,91886.0,91885.0,0.04567]
[1764697008904,0.22854135,91888.0,91885.0,0.04567]
[1764697009105,0.01088281,91888.0,91885.0,0.04567]
[1764697009283,0.21766101,91886.0,91885.0,0.04567]
[1764697010095,0.21766101,91886.0,91885.0,0.04667]
[1764697010707,0.21766101,91886.0,91885.0,0.04567]
[1764697010908,0.21766101,91886.0,91885.0,0.04967]
[1764697011121,0.01088174,91897.0,91885.0,0.06055316]
[1764697011368,0.01088127,91901.0,91892.0,0.01088234]
[1764697011736,0.01088127,91901.0,91896.0,0.05957]
[1764697011737,0.21763312,91898.0,91896.0,0.05957]
[1764697011948,0.21763312,91898.0,91897.0,0.01744]
[1764697012248,0.01088091,91904.0,91897.0,0.12268]
[1764697012428,0.21762582,91901.0,91899.0,0.01088151]
[1764697012630,0.21763051,91899.0,91897.0,0.06311]
[1764697012854,0.21763051,91899.0,91898.0,0.05957]
[1764697013331,0.21763051,91899.0,91897.0,0.06311]
[1764697013580,0.21763051,91899.0,91892.0,0.0919]
[1764697013581,0.21764443,91893.0,91892.0,0.001]
[1764697013766,0.21766101,91886.0,91885.0,0.04567]
[1764697013960,0.21766101,91886.0,91885.0,0.06311]
[1764697014173,0.21766101,91886.0,91885.0,0.21458]
[1764697014582,0.21765967,91887.0,91885.0,0.21458]
[1764697014784,0.21765967,91887.0,91886.0,0.0919]
[1764697015213,0.21765967,91887.0,91886.0,0.15147]
[1764697015342,0.22852225,91895.0,91890.0,0.01088257]
[1764697015544,0.22852225,91895.0,91886.0,0.16235305]
[1764697015545,0.01088234,91892.0,91888.0,0.01088281]
[1764697015748,0.21765534,91889.0,91887.0,0.0919]
[1764697015945,0.22853908,91888.0,91887.0,0.0919]
[1764697016530,0.22855832,91881.0,91876.0,0.01099975]
[1764697016733,0.22855832,91881.0,91878.0,0.1464]
[1764697016943,0.01088352,91882.0,91878.0,0.16384]
[1764697017148,0.21767759,91879.0,91878.0,0.1464]
[1764697017353,0.21767759,91879.0,91876.0,0.14651552]
[1764697017354,0.21768233,91877.0,91876.0,0.14651552]
[1764697017557,0.21927233,91877.0,91876.0,0.14651552]
[1764697017773,0.21927233,91877.0,91876.0,0.00011552]
[1764697017947,0.21927233,91877.0,91876.0,0.01755552]
[1764697017951,0.21768233,91877.0,91876.0,0.01755552]
[1764697018385,0.22167076,91882.0,91876.0,0.01755552]
[1764697018585,0.21768094,91878.0,91876.0,0.01755552]
[1764697018793,0.22856233,91879.0,91876.0,0.01755552]
[1764697018997,0.217681,91878.0,91876.0,0.01755552]
[1764697019622,0.01,91877.0,91876.0,0.01855552]
[1764697019850,0.002,91878.0,91876.0,0.01755552]
[1764697020076,0.002,91878.0,91876.0,0.07812552]
[1764697020313,0.002,91878.0,91877.0,0.15147]
[1764697020532,0.01088352,91882.0,91877.0,0.15147]
[1764697020738,0.22767996,91878.0,91876.0,0.00111552]
[1764697020967,0.22767996,91878.0,91877.0,0.01744]
[1764697021646,0.11280146,91924.0,91912.0,0.01087997]
[1764697021852,0.03850257,91929.0,91912.0,0.01087997]
[1764697021853,0.01087867,91923.0,91914.0,0.68659996]
[1764697022063,0.01284419,91931.0,91923.0,0.05957]
[1764697022284,0.2284379,91929.0,91925.0,0.05957]
[1764697022486,0.2175645,91927.0,91925.0,0.05957]
[1764697022905,0.21768002,91927.0,91925.0,0.05957]
[1764697023338,0.21756867,91925.0,91924.0,0.01744]
[1764697023767,0.21760752,91909.0,91897.0,0.01088174]
[1764697023993,0.0108802,91910.0,91897.0,0.01088174]
[1764697023994,0.01088103,91903.0,91897.0,0.22851608]
[1764697024210,0.01088103,91903.0,91885.0,0.0919]
[1764697024211,0.21764443,91893.0,91885.0,0.0919]
[1764697024419,0.21764443,91893.0,91880.0,0.63005023]
[1764697024420,0.01088293,91887.0,91882.0,0.22855304]
[1764697024628,0.21764206,91894.0,91882.0,0.22855304]
[1764697024629,0.323,91919.0,91892.0,0.07701]
[1764697024861,0.2176468,91892.0,91891.0,0.04567]
[1764697025069,0.2176468,91892.0,91891.0,0.06311]
[1764697025285,0.22852062,91896.0,91891.0,0.06311]
[1764697025496,0.21764652,91893.0,91891.0,0.12268]
[1764697025700,0.21763915,91896.0,91893.0,0.01088222]
[1764697025904,0.21763915,91896.0,91891.0,0.12268]
[1764697025905,0.001,91903.0,91900.0,0.01088139]
[1764697026132,0.0011155,91903.0,91897.0,0.05791]
[1764697026343,0.01088127,91901.0,91897.0,0.09106]
[1764697026568,0.21764628,91893.0,91887.0,0.323]
[1764697026826,0.21764628,91893.0,91891.0,0.002]
[1764697027118,0.21764628,91893.0,91892.0,0.01744]
[1764697027413,0.21764628,91893.0,91881.0,0.01088364]
[1764697027414,0.21764917,91891.0,91890.0,0.01744]
[1764697029051,0.21508917,91891.0,91890.0,0.01744]
[1764697029301,0.21766812,91883.0,91882.0,0.1464]
[1764697029496,0.21769418,91872.0,91870.0,0.0004]
[1764697029702,0.21769418,91872.0,91871.0,0.01763235]
[1764697029923,0.21769418,91872.0,91871.0,0.00023235]
[1764697030554,0.26187961,91872.0,91871.0,0.00023235]
[1764697030707,0.26187961,91872.0,91871.0,0.00034787]
[1764697030897,0.26487961,91872.0,91871.0,0.00034787]
[1764697031919,0.21969418,91872.0,91871.0,0.00034787]
[1764697032331,0.21969418,91872.0,91871.0,0.00234787]
[1764697032551,0.21769418,91872.0,91871.0,0.00034787]
[1764697032748,0.21769418,91872.0,91871.0,0.00134787]
[1764697033014,0.21769418,91872.0,91871.0,0.00434787]
[1764697034396,0.23401858,91872.0,91871.0,0.00434787]
[1764697034601,0.23997858,91872.0,91871.0,0.00434787]
[1764697034802,0.26783961,91872.0,91871.0,0.00434787]
[1764697035403,0.26783961,91872.0,91871.0,0.00334787]
[1764697035785,0.26783961,91872.0,91871.0,0.00134787]
[1764697035986,0.26783961,91872.0,91871.0,0.00434787]
[1764697037020,0.26187961,91872.0,91871.0,0.00434787]
[1764697037788,0.26783961,91872.0,91871.0,0.00434787]
[1764697037987,0.26187961,91872.0,91871.0,0.00434787]
[1764697038488,0.26783961,91872.0,91871.0,0.00434787]
[1764697039070,0.23997858,91872.0,91871.0,0.00434787]
[1764697039392,0.26187961,91872.0,91871.0,0.00434787]
[1764697040442,0.26783961,91872.0,91871.0,0.00434787]
[1764697041069,0.26783961,91872.0,91871.0,0.00334787]
[1764697041266,0.26783961,91872.0,91871.0,0.00034787]
[1764697041499,0.6533626,91872.0,91871.0,0.00134787]
[1764697041717,0.6533626,91872.0,91871.0,0.00334787]
[1764697041921,0.6533626,91872.0,91871.0,0.00034787]
[1764697042330,0.6533626,91872.0,91871.0,0.00334787]
[1764697042531,0.6533626,91872.0,91871.0,0.00134787]
[1764697042737,0.21772025,91861.0,91860.0,0.0004]
[1764697042948,0.30810427,91861.0,91860.0,0.00050452]
[1764697043156,0.30810427,91861.0,91829.0,0.04688]
[1764697043157,0.21774395,91851.0,91829.0,0.04688]
[1764697043375,0.24560498,91851.0,91829.0,0.04688]
[1764697043575,0.26788938,91851.0,91829.0,0.04688]
[1764697044624,0.26788938,91851.0,91825.0,0.06428]
[1764697044909,0.26788938,91851.0,91826.0,0.01089016]
[1764697045117,0.26788938,91851.0,91831.0,0.04688]
[1764697045323,0.26788938,91851.0,91850.0,0.0024]
[1764697045541,0.26788938,91851.0,91850.0,0.0004]
[1764697045768,0.26788938,91851.0,91820.0,0.09106]
[1764697045769,0.06252299,91850.0,91792.0,0.08718683]
[1764697045985,0.010893,91802.0,91797.0,0.0108936]
[1764697046197,0.010893,91802.0,91801.0,0.10479]
[1764697046623,0.01089324,91800.0,91791.0,0.04688]
[1764697046836,0.010893,91802.0,91799.0,0.05791]
[1764697047042,0.01089383,91795.0,91791.0,0.13794]
[1764697047248,0.01089383,91795.0,91791.0,0.04688]
[1764697047454,0.01089395,91794.0,91791.0,0.04688]
[1764697047655,0.22877473,91794.0,91791.0,0.04688]
[1764697047862,0.22877473,91794.0,91790.0,0.00078536]
[1764697047863,0.21788523,91792.0,91790.0,0.00078536]
[1764697048038,0.21786869,91799.0,91790.0,0.01167979]
[1764697048243,0.22873575,91809.0,91799.0,0.01089336]
[1764697048447,0.0163244,91805.0,91801.0,0.22875427]
[1764697048662,0.0163244,91805.0,91793.0,0.04688]
[1764697048663,0.01089289,91803.0,91793.0,0.04688]
[1764697048856,0.01089289,91803.0,91796.0,0.01089372]
[1764697049150,0.2178578,91803.0,91802.0,0.00200563]
[1764697049479,0.2234178,91803.0,91802.0,0.00200563]
[1764697049773,0.01089253,91806.0,91802.0,0.00200563]
[1764697049974,0.01089253,91806.0,91801.0,0.04688]
[1764697050287,0.21786894,91799.0,91796.0,0.001]
[1764697050666,0.01089146,91815.0,91806.0,0.21785068]
[1764697050901,0.01089063,91822.0,91816.0,0.01089134]
[1764697051114,0.01089039,91824.0,91816.0,0.01089134]
[1764697051317,0.01089122,91817.0,91806.0,0.10195253]
[1764697051519,0.01089099,91819.0,91813.0,0.0108917]
[1764697051728,0.2178379,91812.0,91806.0,0.30890983]
[1764697051930,0.01089146,91815.0,91806.0,0.09306]
[1764697052141,0.22872721,91813.0,91809.0,0.01089217]
[1764697052429,0.01089217,91809.0,91804.0,0.01089277]
[1764697052648,0.01089241,91807.0,91803.0,0.01744]
[1764697052857,0.22874561,91806.0,91803.0,0.01744]
[1764697053065,0.21786017,91802.0,91801.0,0.001]
[1764697053473,0.21787777,91795.0,91793.0,0.06432]
[1764697053678,0.21787777,91795.0,91793.0,0.01744]
[1764697054137,0.21787786,91795.0,91793.0,0.06186]
[1764697054551,0.21788628,91791.0,91790.0,0.00078536]
[1764697054763,0.23978731,91791.0,91790.0,0.00078536]
[1764697055205,0.21788628,91791.0,91790.0,0.00078536]
[1764697055685,0.21788628,91791.0,91790.0,0.00314011]
[1764697055891,0.23978731,91791.0,91790.0,0.00314011]
[1764697056095,0.21788628,91791.0,91790.0,0.00314011]
[1764697056750,0.21788628,91791.0,91790.0,0.00414011]
[1764697057143,0.21788628,91791.0,91790.0,0.00714011]
[1764697057580,0.23978731,91791.0,91790.0,0.00714011]
[1764697058365,0.02190103,91793.0,91790.0,0.00714011]
[1764697058575,0.01089312,91801.0,91792.0,0.01089419]
[1764697058779,0.22877102,91795.0,91790.0,0.00478536]
[1764697058987,0.0163244,91796.0,91790.0,0.00478536]
[1764697059193,0.02190103,91791.0,91790.0,0.00478536]
[1764697059408,0.02190103,91791.0,91790.0,0.00078536]
[1764697059815,0.02190103,91791.0,91790.0,0.00178536]
[1764697060432,0.02190103,91791.0,91790.0,0.00378536]
[1764697060891,0.21788467,91792.0,91790.0,0.00378536]
[1764697061604,0.02190103,91791.0,91790.0,0.00378536]
[1764697062376,0.02190103,91791.0,91790.0,0.00478536]
[1764697062791,0.23978731,91791.0,91790.0,0.00478536]
[1764697063068,0.21788628,91791.0,91790.0,0.00078536]
[1764697063411,0.21788628,91791.0,91790.0,0.00478536]
[1764697063615,0.21788628,91791.0,91790.0,0.00178536]
[1764697064030,0.23978731,91791.0,91790.0,0.00478536]
[1764697064457,0.23978731,91791.0,91790.0,0.00714011]
[1764697065093,0.23722731,91791.0,91790.0,0.00714011]
[1764697065560,0.2997503,91791.0,91790.0,0.00714011]
[1764697065964,0.6227503,91791.0,91790.0,0.00714011]
[1764697066600,0.6227503,91791.0,91790.0,0.00614011]
[1764697066809,0.6227503,91791.0,91790.0,0.00314011]
[1764697068399,0.6227503,91791.0,91790.0,1.1e-07]
[1764697068751,0.6227503,91791.0,91780.0,0.0004]
[1764697068752,0.30233404,91781.0,91780.0,0.0004]
[1764697068955,0.30233404,91781.0,91780.0,0.00051554]
[1764697068956,0.31865844,91781.0,91780.0,0.00051554]
[1764697070244,0.31865844,91781.0,91780.0,0.00151554]
[1764697072136,0.4137239,91781.0,91780.0,0.00151554]
[1764697072362,0.4137239,91781.0,91770.0,0.0004]
[1764697072363,0.30235778,91771.0,91770.0,0.0004]
[1764697072573,0.30235778,91771.0,91770.0,0.00051544]
[1764697072784,0.62535778,91771.0,91770.0,0.00051544]
[1764697073843,0.62535778,91771.0,91770.0,0.00151544]
[1764697074474,0.60345675,91771.0,91770.0,0.00151544]
[1764697074707,0.62535778,91771.0,91770.0,0.00151544]
[1764697075793,0.62535778,91771.0,91770.0,0.00051544]
[1764697076015,0.62535778,91771.0,91770.0,0.00151544]
[1764697076216,0.62535778,91771.0,91770.0,0.00051544]
[1764697076622,0.62535778,91771.0,91770.0,0.00151544]
[1764697076829,0.62535778,91771.0,91770.0,0.00051544]
[1764697077267,0.62535778,91771.0,91770.0,0.00151544]
[1764697077645,0.21793376,91771.0,91770.0,0.00117544]
[1764697077845,0.23983274,91772.0,91770.0,0.00069544]
[1764697077999,0.21793376,91771.0,91770.0,0.00069544]
[1764697078211,0.01089645,91773.0,91771.0,0.04537]
[1764697078212,0.22882639,91773.0,91771.0,0.04537]
[1764697078442,0.21792742,91774.0,91772.0,0.05827]
[1764697078642,0.21793139,91772.0,91770.0,0.001]
[1764697078841,0.21793139,91772.0,91764.0,0.2288469]
[1764697078842,0.01089692,91769.0,91764.0,0.2288469]
[1764697079070,0.01089728,91766.0,91764.0,0.00011542]
[1764697079267,0.01089704,91768.0,91766.0,0.21794561]
[1764697079470,0.01089692,91769.0,91766.0,0.22884289]
[1764697079687,0.23982898,91774.0,91767.0,0.01089716]
[1764697079889,0.01089609,91776.0,91772.0,0.01089656]
[1764697080048,0.22883769,91769.0,91765.0,0.21794741]
[1764697080360,0.01089704,91768.0,91764.0,0.00111542]
[1764697080587,0.01089716,91767.0,91764.0,0.00011542]
[1764697080800,0.01089656,91772.0,91765.0,0.0108974]
[1764697080950,0.0108968,91770.0,91767.0,0.01089716]
[1764697081149,0.0108968,91770.0,91767.0,0.01189716]
[1764697081382,0.2288331,91770.0,91767.0,0.01189716]
[1764697081578,0.22883201,91771.0,91768.0,0.22883793]
[1764697081787,0.01089526,91783.0,91770.0,0.28710098]
[1764697081960,0.01089597,91777.0,91772.0,0.05827]
[1764697082182,0.2288171,91777.0,91773.0,0.22882453]
[1764697082542,0.21792902,91773.0,91772.0,0.05827]
[1764697082889,0.01089621,91775.0,91772.0,0.05827]
[1764697083090,0.01089585,91778.0,91774.0,0.2761961]
[1764697083303,0.21791272,91780.0,91774.0,0.28709189]
[1764697083487,0.0108955,91781.0,91777.0,0.01089597]
[1764697083702,0.0108955,91781.0,91776.0,0.21792109]
[1764697084042,0.01089573,91779.0,91772.0,0.003]
[1764697084184,0.01089585,91778.0,91773.0,0.08952]
[1764697084389,0.21792664,91774.0,91773.0,0.08952]
[1764697084597,0.21793139,91772.0,91771.0,0.01744]
[1764697084794,0.22884277,91767.0,91764.0,0.00011542]
[1764697085022,0.01089633,91774.0,91765.0,0.10696]
[1764697085193,0.01089561,91780.0,91775.0,0.01089621]
[1764697085397,0.01089561,91780.0,91773.0,0.05827]
[1764697085398,0.21792189,91776.0,91774.0,0.05827]
[1764697085580,0.01089597,91777.0,91774.0,0.05827]
[1764697085782,0.21792189,91776.0,91774.0,0.05327]
[1764697086174,0.21792427,91775.0,91774.0,0.05327]
[1764697087212,0.21792664,91774.0,91773.0,0.001]
[1764697087831,0.21794178,91768.0,91766.0,0.1464]
[1764697088244,0.01089621,91775.0,91766.0,0.1464]
[1764697088245,0.01089585,91778.0,91771.0,0.01089668]
[1764697088424,0.01089609,91776.0,91772.0,0.01089656]
[1764697088672,0.01089573,91779.0,91777.0,0.05322]
[1764697088857,0.02190103,91795.0,91778.0,0.05322]
[1764697089030,0.01089467,91788.0,91779.0,0.05322]
[1764697089240,0.2287996,91784.0,91779.0,0.06411573]
[1764697089565,0.217909,91782.0,91779.0,0.06411573]
[1764697089766,0.22880106,91783.0,91780.0,0.08477]
[1764697089998,0.22880106,91783.0,91782.0,0.05322]
[1764697090415,0.43561701,91824.0,91789.0,0.01089455]
[1764697090629,0.0108936,91797.0,91790.0,0.22878085]
[1764697090835,0.21788391,91792.0,91791.0,0.10217]
[1764697091055,0.21788194,91793.0,91791.0,0.10217]
[1764697091459,0.21788194,91793.0,91791.0,0.09717]
[1764697091664,0.21788194,91793.0,91792.0,0.05322]
[1764697092067,0.21788194,91793.0,91792.0,0.13799]
[1764697092909,0.21788194,91793.0,91792.0,0.13723]
[1764697093854,0.01089383,91795.0,91792.0,0.13723]
[1764697094079,0.01089383,91795.0,91793.0,0.08477]
[1764697094278,0.01089383,91795.0,91794.0,0.05322]
[1764697094437,0.01089336,91799.0,91794.0,0.05322]
[1764697094650,0.21787916,91794.0,91793.0,0.00011542]
[1764697095078,0.21787916,91794.0,91793.0,0.05333542]
[1764697095281,0.21787916,91794.0,91793.0,0.14110542]
[1764697095486,0.01089372,91796.0,91793.0,0.14110542]
[1764697095696,0.22875505,91802.0,91797.0,0.22876541]
[1764697095907,0.22874439,91806.0,91801.0,0.06411312]
[1764697096109,0.22874439,91806.0,91805.0,0.05322]
[1764697096520,0.22874439,91806.0,91805.0,0.13799]
[1764697097151,0.0108917,91813.0,91805.0,0.13799]
[1764697097360,0.0108917,91813.0,91812.0,0.04199]
[1764697097569,0.21782986,91815.0,91812.0,0.09521]
[1764697097570,0.21782948,91815.0,91812.0,0.09521]
[1764697097771,0.22872094,91815.0,91814.0,0.05322]
[1764697099013,0.21780885,91824.0,91817.0,0.21782458]
[1764697099219,0.01088933,91833.0,91821.0,0.01089075]
[1764697099431,0.01088933,91833.0,91832.0,0.05322]
[1764697099664,0.2286763,91833.0,91832.0,0.05322]
[1764697100072,0.00196911,91842.0,91835.0,0.01088909]
[1764697100279,0.00208459,91842.0,91841.0,0.09521]
[1764697100578,0.00208459,91842.0,91841.0,0.17998]
[1764697100837,0.00208459,91842.0,91841.0,0.19738]
[1764697101471,0.00208459,91842.0,91841.0,0.19838]
[1764697101653,0.00208459,91842.0,91841.0,0.20138]
[1764697101950,0.00208459,91842.0,91841.0,0.20038]
[1764697102611,0.00208459,91842.0,91841.0,0.41814766]
[1764697102812,0.00208459,91842.0,91841.0,0.41514766]
[1764697103224,0.00208459,91842.0,91841.0,0.41914766]
[1764697103669,0.00208459,91842.0,91841.0,0.20138]
[1764697103872,0.00208459,91842.0,91841.0,0.004]
[1764697104092,0.01840899,91842.0,91841.0,0.005]
[1764697104472,0.01088897,91836.0,91832.0,0.21778797]
[1764697104766,0.00208459,91842.0,91841.0,0.04044]
[1764697105549,0.00208459,91842.0,91841.0,0.09234]
[1764697105752,0.00208459,91842.0,91841.0,0.19127]
[1764697106156,0.00208459,91842.0,91841.0,0.33767]
[1764697106335,0.00208459,91842.0,91841.0,0.34067]
[1764697106540,0.00208459,91842.0,91841.0,0.33767]
[1764697106740,0.01088909,91835.0,91832.0,0.001]
[1764697106988,0.22867148,91835.0,91833.0,0.0174]
[1764697107184,0.21778214,91835.0,91833.0,0.0174]
[1764697107407,0.22866629,91837.0,91834.0,0.01088921]
[1764697108155,0.22866629,91837.0,91834.0,0.22867272]
[1764697108358,0.22866895,91836.0,91834.0,0.001]
[1764697109207,0.22867347,91834.0,91831.0,0.0174]
[1764697109413,0.22867347,91834.0,91820.0,0.27069621]
[1764697109414,0.22870014,91824.0,91820.0,0.04199]
[1764697109610,0.21781509,91821.0,91820.0,0.04199]
[1764697109860,0.21781509,91821.0,91801.0,0.15729312]
[1764697109861,0.01089253,91806.0,91803.0,0.08153]
[1764697110068,0.01089217,91809.0,91804.0,0.05784]
[1764697110069,0.01089241,91807.0,91804.0,0.05784]
[1764697110267,0.01089229,91808.0,91805.0,0.0519]
[1764697110467,0.21784951,91807.0,91805.0,0.0519]
[1764697110642,0.22873623,91809.0,91805.0,0.0519]
[1764697110843,0.01089217,91809.0,91805.0,0.28064497]
[1764697111111,0.01089217,91809.0,91805.0,0.06279265]
[1764697111310,0.21784911,91807.0,91805.0,0.0519]
[1764697111725,0.21785176,91806.0,91804.0,0.04044]
[1764697112469,0.010893,91802.0,91797.0,0.0108936]
[1764697112672,0.21784914,91807.0,91805.0,0.0519]
[1764697112876,0.01089194,91811.0,91807.0,0.22873982]
[1764697113084,0.01089194,91811.0,91805.0,0.00011542]
[1764697113085,0.21785068,91806.0,91805.0,0.00011542]
[1764697113464,0.21784831,91807.0,91805.0,0.00011542]
[1764697113687,0.21785068,91806.0,91805.0,0.00011542]
[1764697116094,0.01089229,91808.0,91805.0,0.00011542]
[1764697116271,0.21784871,91807.0,91805.0,0.06034542]
[1764697116470,0.21784831,91807.0,91805.0,0.06034542]
[1764697116852,0.0163244,91806.0,91805.0,0.00411542]
[1764697117053,0.0163244,91806.0,91805.0,0.00111542]
[1764697117317,0.10074842,91806.0,91805.0,0.00111542]
[1764697117672,0.21790527,91783.0,91774.0,0.21792617]
[1764697117883,0.23422967,91783.0,91773.0,0.21792751]
[1764697118089,0.23422967,91783.0,91777.0,0.04113]
[1764697118508,0.23422967,91783.0,91778.0,0.01089585]
[1764697118672,0.0163244,91783.0,91780.0,0.01089561]
[1764697118880,0.0163244,91783.0,91782.0,0.00123269]
[1764697119434,0.05415014,91874.0,91782.0,0.00123269]
[1764697119435,0.22878546,91790.0,91782.0,0.14581269]
[1764697119607,0.01089502,91785.0,91782.0,0.06878269]
[1764697119793,0.0108949,91786.0,91782.0,0.28668981]
[1764697119999,0.0108949,91786.0,91782.0,0.07967807]
[1764697120208,0.2178964,91787.0,91785.0,0.05115]
[1764697120403,0.2178964,91787.0,91782.0,0.00023269]
[1764697120604,0.23422967,91783.0,91782.0,0.00023269]
[1764697121104,0.23522967,91783.0,91782.0,0.00023269]
[1764697121712,0.23422967,91783.0,91782.0,0.00023269]
[1764697122218,0.23422967,91783.0,91782.0,0.00123269]
[1764697122655,0.23422967,91783.0,91782.0,0.00423269]
[1764697123320,0.33605369,91783.0,91782.0,0.00423269]
[1764697124189,0.33605369,91783.0,91782.0,0.00323269]
[1764697124565,0.33605369,91783.0,91782.0,0.00423269]
[1764697124948,0.65905369,91783.0,91782.0,0.00423269]
[1764697125270,0.65905369,91783.0,91760.0,0.0004]
[1764697125271,0.23985855,91761.0,91760.0,0.0004]
[1764697125473,0.25075399,91763.0,91760.0,0.00051514]
[1764697125651,0.23428034,91762.0,91760.0,0.00051514]
[1764697126036,0.02190103,91761.0,91760.0,0.00051514]
[1764697126930,0.25618137,91762.0,91760.0,0.00351514]
[1764697127103,0.25618137,91762.0,91760.0,0.00051514]
[1764697127578,0.0163244,91762.0,91760.0,0.00051514]
[1764697127998,0.01089656,91772.0,91762.0,0.01089775]
[1764697128323,0.21795615,91762.0,91760.0,0.00151514]
[1764697128488,0.01089716,91767.0,91761.0,0.04113]
[1764697128698,0.2288488,91764.0,91761.0,0.04113]
[1764697128898,0.22295514,91762.0,91760.0,0.00051514]
[1764697129100,0.005,91762.0,91761.0,0.11716]
[1764697129364,0.005,91762.0,91761.0,0.16831]
[1764697130169,0.005,91762.0,91761.0,0.09228]
[1764697130373,0.0108974,91765.0,91761.0,0.32113429]
[1764697130616,0.21795075,91764.0,91761.0,0.10317787]
[1764697130800,0.0108974,91765.0,91761.0,0.39716506]
[1764697130949,0.22883109,91771.0,91766.0,0.2179436]
[1764697131145,0.01089668,91771.0,91768.0,0.21794008]
[1764697131380,0.01089668,91771.0,91767.0,0.05115]
[1764697131703,0.21792692,91774.0,91771.0,0.01089668]
[1764697131908,0.21793418,91771.0,91767.0,0.06204716]
[1764697132086,0.01089704,91768.0,91765.0,0.21794754]
[1764697132289,0.22883853,91768.0,91765.0,0.22884398]
[1764697132505,0.21795069,91764.0,91761.0,0.41638481]
[1764697132684,0.0108974,91765.0,91761.0,0.19842787]
[1764697133040,0.21795321,91763.0,91761.0,0.18753]
[1764697133239,0.01089704,91768.0,91763.0,0.01089763]
[1764697133530,0.22884328,91766.0,91763.0,0.01089763]
[1764697133748,0.01089728,91766.0,91763.0,0.22885017]
[1764697133967,0.01089704,91768.0,91764.0,0.22884749]
[1764697134151,0.22883966,91768.0,91764.0,0.22884749]
[1764697134310,0.21794394,91767.0,91764.0,0.22884749]
[1764697135031,0.003,91765.0,91763.0,0.001]
[1764697135228,0.22884377,91766.0,91763.0,0.01189763]
[1764697135416,0.01089597,91777.0,91768.0,0.01089704]
[1764697135615,0.0108955,91781.0,91776.0,0.01089609]
[1764697135815,0.21791952,91777.0,91776.0,0.05115]
[1764697136365,0.21793282,91772.0,91770.0,0.00034909]
[1764697136566,0.22882938,91772.0,91769.0,0.29396841]